bitfinex-derivatives/quotes_ETHF0:USTF0_20210705
["timestamp","ask_amount","ask_price","bid_price","bid_amount"]
[1625502888820,2.20527,2218.6,2218.5,2.20527]
[1625502904267,2.20527,2218.6,2217.4,1.0]
[1625502904357,2.20527,2218.6,2216.6,16.13808898]
[1625502904456,1.0,2218.5,2216.6,16.13808898]
[1625502904558,1.0,2218.5,2216.6,17.13808898]
[1625502904666,1.0,2218.5,2216.7,0.13359981]
[1625502904821,1.0,2218.5,2216.7,1.45093508]
[1625502904918,1.0,2218.5,2218.3,2.20527]
[1625502905018,2.20527,2218.6,2218.3,2.20527]
[1625502906878,2.20527,2218.4,2218.3,2.20527]
[1625502909981,5.67367,2218.4,2218.3,2.10537]
[1625502910080,5.67367,2218.4,2218.3,1.81537]
[1625502910183,5.67367,2218.4,2218.3,1.18237]
[1625502910782,5.67367,2218.4,2217.0,1.0]
[1625502910897,2.20527,2217.6,2217.5,2.20527]
[1625502911084,4.73817,2217.6,2217.5,2.20527]
[1625502911485,4.73817,2217.6,2217.5,2.11307]
[1625502912793,5.64447,2217.6,2217.5,2.11307]
[1625502912897,7.84974,2217.6,2217.5,2.11307]
[1625502913645,6.94344,2217.6,2217.5,2.11307]
[1625502919078,7.84354,2217.6,2217.5,2.11307]
[1625502920746,6.94344,2217.6,2217.5,2.11307]
[1625502921736,7.83364,2217.6,2217.5,2.11307]
[1625502922192,7.83364,2217.6,2216.6,14.93648]
[1625502922290,12.83364,2217.6,2216.6,13.49457]
[1625502922410,12.83364,2217.6,2216.6,12.40427]
[1625502922516,12.83364,2217.6,2215.6,1.0]
[1625502922606,2.1,2217.5,2215.1,5.27391843]
[1625502922696,5.0,2217.4,2215.1,5.27391843]
[1625502922795,1.0,2217.3,2215.1,5.27391843]
[1625502922994,2.1,2217.3,2215.1,5.27391843]
[1625502923090,2.1,2217.3,2215.3,2.20527]
[1625502923091,2.20527,2215.4,2215.3,2.20527]
[1625502923393,2.20527,2215.4,2215.3,2.13527]
[1625502923491,2.20527,2215.4,2215.3,2.05317]
[1625502923590,2.20527,2215.4,2215.3,1.95827]
[1625502923690,2.20527,2215.4,2215.3,1.88027]
[1625502925189,7e-05,2215.4,2215.3,1.88027]
[1625502925289,1.0,2216.2,2215.3,1.88027]
[1625502925391,1.0,2216.2,2215.3,5.40947]
[1625502926495,1.8965,2216.2,2215.3,5.40947]
[1625502926600,1.0,2216.2,2215.3,5.40947]
[1625502927047,2.20527,2216.0,2215.9,2.20527]
[1625502927146,3.20527,2216.0,2215.9,2.20527]
[1625502929102,5.41054,2216.0,2215.9,2.20527]
[1625502929401,4.41054,2216.0,2215.9,2.20527]
[1625502931478,5.41054,2216.0,2215.9,2.20527]
[1625502931978,4.41054,2216.0,2215.9,2.20527]
[1625502932430,5.41054,2216.0,2215.9,2.20527]
[1625502932930,4.41054,2216.0,2215.9,2.20527]
[1625502933230,5.41054,2216.0,2215.9,2.20527]
[1625502933732,4.41054,2216.0,2215.9,2.20527]
[1625502934333,5.41054,2216.0,2215.9,2.20527]
[1625502934434,4.41054,2216.0,2215.9,2.20527]
[1625502934535,4.41054,2216.0,2215.9,7e-05]
[1625502934634,4.41054,2216.0,2215.3,1.88027]
[1625502935135,2.20527,2215.4,2215.3,1.88027]
[1625502935336,3.20527,2215.4,2215.3,1.88027]
[1625502936590,2.20527,2215.4,2215.3,1.88027]
[1625502936891,3.20527,2215.4,2215.3,1.88027]
[1625502941059,5.75447,2215.4,2214.6,15.0037]
[1625502941159,4.41054,2214.7,2214.6,17.20897]
[1625502941659,4.41054,2214.7,2214.6,2.20527]
[1625502948154,1.0,2215.1,2214.6,2.20527]
[1625502948279,14.4822,2215.9,2214.6,5.54607]
[1625502948369,1.32142412,2216.8,2214.6,5.54607]
[1625502948452,1.0,2216.7,2214.6,5.54607]
[1625502948766,1.32142412,2216.8,2214.6,5.54607]
[1625502948854,14.857,2217.3,2214.6,10.54607]
[1625502949107,20.66148317,2217.5,2214.6,10.54607]
[1625502949204,2.20527,2217.1,2217.0,2.20527]
[1625502949307,2.20527,2217.1,2217.0,4.72697]
[1625502951209,3.20527,2217.4,2217.0,4.72697]
[1625502953266,3.20527,2217.4,2217.3,2.20527]
[1625502956584,3.20527,2217.4,2217.0,2.20527]
[1625502957340,2.20527,2217.1,2217.0,2.20527]
[1625502957440,3.20527,2217.1,2217.0,2.20527]
[1625502957686,3.20527,2217.1,2216.8,2.20527]
[1625502957787,6.20957,2217.1,2216.8,2.20527]
[1625502958990,5.20957,2217.1,2216.8,2.20527]
[1625502959289,7.41484,2217.1,2216.8,2.20527]
[1625502959487,8.41484,2217.1,2216.8,2.20527]
[1625502961505,7.41484,2217.1,2216.8,2.20527]
[1625502962759,1.0,2217.0,2216.8,2.20527]
[1625502964061,1.0,2217.0,2216.7,2.20527]
[1625502965314,2.20527,2216.8,2216.7,2.20527]
[1625502965417,3.20527,2216.8,2216.7,2.20527]
[1625502965514,2.20527,2216.8,2216.7,2.20527]
[1625502968668,3.20527,2216.8,2216.7,2.20527]
[1625502970336,2.20527,2216.8,2216.7,2.20527]
[1625502970437,2.20527,2216.8,2216.7,5.34707]
[1625502978521,3.20527,2216.8,2216.7,5.34707]
[1625502980275,2.20527,2216.8,2216.7,5.34707]
[1625502980376,3.20527,2216.8,2216.7,5.34707]
[1625502980576,2.20527,2216.8,2216.7,5.34707]
[1625502981444,3.20527,2216.8,2216.7,5.34707]
[1625502981746,2.20527,2216.8,2216.7,5.34707]
[1625502982648,3.20527,2216.8,2216.7,5.34707]
[1625502983763,2.20527,2216.8,2216.7,5.34707]
[1625502988474,5.42307,2216.8,2215.3,1.31934456]
[1625502988573,5.42307,2216.8,2215.4,1.31969516]
[1625502988875,5.42307,2216.8,2215.2,1.32036058]
[1625502989278,5.42307,2216.8,2215.1,1.32018695]
[1625502989578,5.42307,2216.8,2215.2,0.13369054]
[1625502989679,2.20527,2216.3,2216.2,2.20527]
[1625502993714,5.07527,2216.3,2216.2,2.20527]
[1625502999427,2.87,2216.3,2216.2,2.20527]
[1625502999527,1.0,2216.9,2216.2,2.20527]
[1625502999776,2.20527,2216.8,2216.5,2.20527]
[1625502999877,3.20527,2216.8,2216.5,2.20527]
[1625503001740,2.20527,2216.6,2216.5,2.20527]
[1625503001840,3.20527,2216.6,2216.5,2.20527]
[1625503003642,2.20527,2216.6,2216.5,2.20527]
[1625503006866,2.20527,2216.6,2216.5,5.52467]
[1625503017055,1.0,2217.1,2216.5,5.52467]
[1625503017907,2.20527,2217.0,2216.8,2.20527]
[1625503018007,1.0,2216.9,2216.8,2.20527]
[1625503019857,3.20527,2216.9,2216.8,2.20527]
[1625503022672,1.32948269,2217.3,2216.8,2.20527]
[1625503022771,1.32948269,2217.3,2216.8,5.17077]
[1625503022977,4.759,2217.6,2216.8,5.17077]
[1625503023177,1.32932044,2217.7,2216.8,5.17077]
[1625503023478,1.32918513,2217.8,2216.8,5.17077]
[1625503023880,1.32918513,2217.8,2217.7,2.20527]
[1625503023983,1.32918513,2217.8,2217.7,5.59557]
[1625503024702,2.32918513,2217.8,2217.7,5.59557]
[1625503025165,1.0,2217.8,2217.7,5.59557]
[1625503035370,2.33079102,2217.8,2217.7,5.59557]
[1625503036371,2.33079102,2217.8,2217.7,3.3903]
[1625503036473,2.33079102,2217.8,2216.8,2.9655]
[1625503036571,2.33079102,2217.8,2216.7,1.32395909]
[1625503036674,2.33079102,2217.8,2216.6,1.3236777]
[1625503036923,2.33079102,2217.8,2216.8,0.13364197]
[1625503037021,2.33079102,2217.8,2216.8,3.06154197]
[1625503037278,2.33079102,2217.8,2216.9,0.13364013]
[1625503037378,1.33208769,2217.6,2216.9,0.13364013]
[1625503037930,3.53735769,2217.6,2217.5,4.41054]
[1625503038031,4.53735769,2217.6,2217.5,4.41054]
[1625503038785,3.20527,2217.6,2217.5,4.41054]
[1625503039189,4.53722872,2217.6,2217.5,4.41054]
[1625503039787,5.06995762,2217.6,2217.5,4.41054]
[1625503041700,4.53701596,2217.6,2217.5,4.41054]
[1625503044364,5.06956192,2217.6,2216.6,1.32303197]
[1625503044463,8.43626192,2217.6,2216.6,1.32303197]
[1625503044865,1.33173728,2217.4,2216.5,1.32351603]
[1625503044967,1.0,2217.3,2216.5,1.32351603]
[1625503045265,1.0,2217.3,2216.4,13.8367]
[1625503045266,2.33179534,2217.3,2216.4,13.8367]
[1625503045566,1.33182471,2217.2,2216.4,13.8367]
[1625503045668,1.0,2217.1,2216.4,13.8367]
[1625503045916,1.0,2217.1,2216.5,0.13366516]
[1625503046015,3.20527,2217.1,2217.0,2.20527]
[1625503047969,5.41054,2217.1,2217.0,2.20527]
[1625503050024,3.20527,2217.1,2217.0,5.53387]
[1625503050735,2.20527,2217.1,2217.0,5.53387]
[1625503053396,2.33183755,2217.3,2217.0,5.53387]
[1625503053594,1.33171474,2217.4,2217.0,5.53387]
[1625503054045,1.33171474,2217.4,2217.3,2.20527]
[1625503054348,1.33160812,2217.6,2217.3,2.20527]
[1625503054799,1.86425137,2217.7,2217.3,2.20527]
[1625503054800,1.3315565,2217.7,2217.3,2.20527]
[1625503056011,1.3315565,2217.7,2217.6,2.20527]
[1625503056212,1.3315565,2217.7,2217.6,4.40947]
[1625503056314,1.33138297,2217.8,2217.6,4.40947]
[1625503057068,0.33138297,2217.8,2217.6,4.40947]
[1625503058069,0.33138297,2217.8,2217.7,2.20527]
[1625503058221,2.86369002,2218.0,2217.7,2.20527]
[1625503059272,1.86369002,2218.0,2217.7,2.20527]
[1625503060074,1.86369002,2218.0,2217.9,2.20527]
[1625503060275,2.86338978,2218.1,2217.9,2.20527]
[1625503060779,1.86338978,2218.1,2217.9,2.20527]
[1625503061483,2.86338978,2218.1,2217.9,2.20527]
[1625503062088,2.20527,2218.0,2217.9,2.20527]
[1625503062190,3.20527,2218.0,2217.9,2.20527]
[1625503062290,3.20527,2218.0,2216.8,1.84952419]
[1625503062939,3.20527,2218.0,2216.5,1.8509614]
[1625503062940,1.86336917,2217.8,2216.5,1.8509614]
[1625503063038,1.0,2217.7,2216.5,1.8509614]
[1625503063388,1.0,2217.7,2216.6,0.13365375]
[1625503063488,1.86353725,2217.6,2216.6,0.13365375]
[1625503063590,1.0,2217.5,2216.6,0.13365375]
[1625503063792,1.0,2217.5,2216.5,0.13365599]
[1625503064089,3.20527,2217.5,2217.4,2.20527]
[1625503066146,5.41054,2217.5,2217.4,2.20527]
[1625503068300,7.27409689,2217.5,2217.4,2.20527]
[1625503068601,5.41054,2217.5,2217.4,2.20527]
[1625503070402,5.41054,2217.5,2217.4,4.95547]
[1625503071257,4.41054,2217.5,2217.4,4.95547]
[1625503072266,5.41054,2217.5,2217.4,4.95547]
[1625503072365,4.41054,2217.5,2217.4,4.95547]
[1625503074125,5.41054,2217.5,2217.4,4.95547]
[1625503079393,4.41054,2217.5,2217.4,4.95547]
[1625503079494,5.41054,2217.5,2217.4,4.95547]
[1625503082574,7.27446055,2217.5,2217.4,4.95547]
[1625503084082,5.41054,2217.5,2217.4,4.95547]
[1625503084329,4.41054,2217.5,2217.4,4.95547]
[1625503084431,6.27499551,2217.5,2217.4,4.95547]
[1625503086748,7.07455454,2217.5,2217.4,4.95547]
[1625503087212,4.41054,2217.5,2217.4,4.95547]
[1625503087600,7.07459623,2217.5,2217.4,4.95547]
[1625503088856,6.27574553,2217.5,2217.4,4.95547]
[1625503089055,5.27574553,2217.5,2217.4,4.95547]
[1625503089356,3.41054,2217.5,2217.4,4.95547]
[1625503089867,4.41054,2217.5,2217.4,4.95547]
[1625503091573,3.41054,2217.5,2217.4,4.95547]
[1625503091675,5.27590164,2217.5,2217.4,4.95547]
[1625503092126,3.41054,2217.5,2217.4,4.95547]
[1625503093477,4.41054,2217.5,2217.4,4.95547]
[1625503094783,3.41054,2217.5,2217.4,4.95547]
[1625503095736,5.27645595,2217.5,2217.4,4.95547]
[1625503096188,3.41054,2217.5,2217.4,4.95547]
[1625503096287,4.41054,2217.5,2217.4,4.95547]
[1625503096688,3.41054,2217.5,2217.4,4.95547]
[1625503096888,4.41054,2217.5,2217.4,4.95547]
[1625503097690,6.27673058,2217.5,2217.4,4.95547]
[1625503100055,4.41054,2217.5,2217.4,4.95547]
[1625503100508,7.07699212,2217.5,2217.4,4.95547]
[1625503101117,4.41054,2217.5,2217.4,4.95547]
[1625503101672,7.07726748,2217.5,2217.4,4.95547]
[1625503104074,7.07726748,2217.5,2217.4,2.20527]
[1625503104174,7.07726748,2217.5,2216.7,1.86004215]
[1625503104379,4.87199748,2217.5,2217.2,2.20527]
[1625503104480,1.86700573,2217.3,2216.9,2.20527]
[1625503104579,1.0,2217.2,2216.9,2.20527]
[1625503104880,2.86712364,2217.2,2216.9,2.20527]
[1625503105484,1.86720157,2217.1,2216.9,2.20527]
[1625503105581,1.0,2217.0,2216.9,2.20527]
[1625503106183,2.86748786,2217.0,2216.9,2.20527]
[1625503106384,7.27802786,2217.0,2216.9,2.20527]
[1625503108893,6.27802786,2217.0,2216.9,2.20527]
[1625503108993,1.86748786,2217.0,2216.9,2.20527]
[1625503109192,1.86741291,2217.1,2216.9,2.20527]
[1625503109288,1.86741291,2217.1,2216.9,5.32797]
[1625503109491,1.86741291,2217.1,2216.9,5.46163151]
[1625503109591,3.46805255,2217.4,2216.9,5.46163151]
[1625503109592,1.867258,2217.3,2216.9,5.46163151]
[1625503109797,1.867258,2217.3,2217.0,0.13366088]
[1625503109997,2.867258,2217.3,2217.0,0.13366088]
[1625503110399,2.867258,2217.3,2217.2,2.20527]
[1625503111004,1.0,2217.3,2217.2,2.20527]
[1625503112619,4.07247206,2217.4,2217.2,2.20527]
[1625503112720,5.07247206,2217.4,2217.2,2.20527]
[1625503113321,3.20527,2217.4,2217.2,2.20527]
[1625503114122,2.20527,2217.4,2217.2,2.20527]
[1625503114375,2.20527,2217.4,2217.3,2.20527]
[1625503118034,2.20527,2217.4,2217.3,102.20527]
[1625503119339,2.20527,2217.4,2217.3,102.33890995]
[1625503135615,2.20527,2217.4,2217.3,102.20527]
[1625503135967,2.20527,2217.4,2217.3,102.33890106]
[1625503144748,3.20527,2217.4,2217.3,102.33890106]
[1625503144949,3.20527,2217.4,2217.3,102.20527]
[1625503153486,6.27567,2217.4,2217.3,102.20527]
[1625503156446,8.14209251,2217.4,2217.3,102.20527]
[1625503157203,6.27567,2217.4,2217.3,102.20527]
[1625503157604,8.94207608,2217.4,2217.3,102.20527]
[1625503161881,6.27567,2217.4,2217.3,102.20527]
[1625503162630,8.94184393,2217.4,2217.3,102.20527]
[1625503165690,6.27567,2217.4,2217.3,102.20527]
[1625503166842,8.94164201,2217.4,2217.3,102.20527]
[1625503167691,6.27567,2217.4,2217.3,102.20527]
[1625503167992,8.9414652,2217.4,2217.3,102.20527]
[1625503168840,8.9414652,2217.4,2217.3,100.0]
[1625503169951,6.27567,2217.4,2217.3,100.0]
[1625503171303,8.94111886,2217.4,2217.3,100.0]
[1625503175856,8.94111886,2217.4,2217.3,98.4036]
[1625503176159,6.27567,2217.4,2217.3,98.4036]
[1625503177007,8.94091696,2217.4,2217.3,98.4036]
[1625503178160,6.27567,2217.4,2217.3,98.4036]
[1625503181023,8.94055132,2217.4,2217.3,98.4036]
[1625503182084,8.94055132,2217.4,2217.3,97.5056]
[1625503189773,5.87015132,2217.4,2217.3,97.5056]
[1625503190734,3.20527,2217.4,2217.3,97.5056]
[1625503194291,5.86931857,2217.4,2217.3,97.5056]
[1625503194651,3.20527,2217.4,2217.3,97.5056]
[1625503198107,5.86936686,2217.4,2217.3,97.5056]
[1625503200567,3.20527,2217.4,2217.3,97.5056]
[1625503200976,5.86935844,2217.4,2217.3,97.5056]
[1625503202324,5.86935844,2217.4,2217.3,95.7857]
[1625503202425,8.03215844,2217.4,2217.3,94.8057]
[1625503202526,8.03215844,2217.4,2217.3,87.6956]
[1625503202627,8.03215844,2217.4,2217.3,86.8026]
[1625503202726,13.03215844,2217.4,2217.3,85.2264]
[1625503202828,13.83148694,2217.4,2217.3,85.2264]
[1625503203027,8.83148694,2217.4,2217.3,81.1163]
[1625503203230,5.36807,2217.4,2217.3,81.1163]
[1625503203482,10.36807,2217.4,2217.3,81.1163]
[1625503203585,11.46807,2217.4,2217.3,81.1163]
[1625503203837,6.46807,2217.4,2217.3,81.1163]
[1625503204037,5.36807,2217.4,2217.3,81.1163]
[1625503204248,5.36807,2217.4,2217.3,80.2209]
[1625503204381,10.36807,2217.4,2217.3,79.9955]
[1625503204482,13.82977571,2217.4,2217.3,79.0117]
[1625503204555,14.92977571,2217.4,2217.3,77.215]
[1625503204646,14.92977571,2217.4,2217.3,69.8934]
[1625503204746,14.92977571,2217.4,2217.3,29.2133]
[1625503204898,14.92977571,2217.4,2217.3,26.5933]
[1625503204997,31.41138271,2217.4,2217.3,26.5933]
[1625503205098,27.949677,2217.4,2217.3,24.29958028]
[1625503205199,27.949677,2217.4,2217.3,19.22448028]
[1625503205300,27.949677,2217.4,2217.3,6.32098028]
[1625503205397,27.949677,2217.4,2217.3,5.41498028]
[1625503205705,27.949677,2217.4,2217.3,3.18788028]
[1625503205799,27.949677,2217.4,2217.3,2.05998028]
[1625503206008,27.949677,2217.4,2217.3,1.86418028]
[1625503206109,34.59429584,2217.4,2217.3,1.86418028]
[1625503206209,34.59429584,2217.4,2217.3,1.79278028]
[1625503206310,34.59429584,2217.4,2217.3,8.028e-05]
[1625503206610,27.949677,2217.4,2217.3,8.028e-05]
[1625503206964,34.59348292,2217.4,2217.3,8.028e-05]
[1625503207811,34.59348292,2217.4,2216.0,2.20527]
[1625503207812,0.00591972,2217.1,2216.0,2.20527]
[1625503208162,16.243054,2217.0,2216.0,2.20527]
[1625503208263,10.2545,2216.9,2216.0,2.20527]
[1625503208363,11.1677,2216.9,2216.0,2.20527]
[1625503209013,4.41054,2216.1,2216.0,2.20527]
[1625503209114,6.30904,2216.1,2216.0,2.20527]
[1625503209314,5.30904,2216.1,2216.0,2.20527]
[1625503209818,6.30904,2216.1,2216.0,2.20527]
[1625503212021,5.30904,2216.1,2216.0,2.20527]
[1625503212423,5.30904,2216.1,2216.0,1.32527]
[1625503212524,6.30904,2216.1,2216.0,1.32527]
[1625503212624,9.03914,2216.1,2216.0,1.32527]
[1625503212724,9.03914,2216.1,2215.5,13.9564]
[1625503213075,4.41054,2215.6,2215.5,13.9564]
[1625503213178,5.30824,2215.6,2215.3,2.20527]
[1625503213576,5.30824,2215.6,2215.1,2.20527]
[1625503214277,6.30824,2215.6,2214.8,14.6565]
[1625503214980,6.30824,2215.6,2214.4,14.9407]
[1625503214981,8.97514,2215.6,2214.4,14.9407]
[1625503215079,2.20527,2215.0,2214.9,2.20527]
[1625503217139,4.41054,2215.0,2214.9,2.20527]
[1625503217801,4.41054,2215.0,2214.9,2.13367]
[1625503218602,4.41054,2215.0,2214.9,2.05887]
[1625503222365,4.41054,2215.0,2214.9,4.80057]
[1625503232262,4.41054,2215.0,2214.9,2.05887]
[1625503239446,5.41054,2215.0,2214.9,2.05887]
[1625503239899,5.41054,2215.0,2214.7,2.20527]
[1625503240204,5.41054,2215.0,2213.5,14.6393]
[1625503240961,8.08064,2215.0,2213.5,14.6393]
[1625503241360,2.20527,2214.0,2213.8,2.20527]
[1625503241463,3.20527,2214.0,2213.8,2.20527]
[1625503241561,2.20527,2214.0,2213.8,2.20527]
[1625503243371,4.41054,2214.0,2213.8,2.20527]
[1625503247226,5.41054,2214.0,2213.8,2.20527]
[1625503247427,4.41054,2214.0,2213.8,2.20527]
[1625503248332,5.41054,2214.0,2213.8,2.20527]
[1625503248430,4.41054,2214.0,2213.8,2.20527]
[1625503250234,5.41054,2214.0,2213.8,2.20527]
[1625503250637,4.41054,2214.0,2213.8,2.20527]
[1625503255859,5.41054,2214.0,2213.8,2.20527]
[1625503256663,4.41054,2214.0,2213.8,2.20527]
[1625503258267,0.9103,2215.0,2213.8,2.20527]
[1625503258367,14.9605,2215.5,2213.8,2.20527]
[1625503259071,1.0,2215.4,2213.8,2.20527]
[1625503259470,2.20527,2214.5,2214.4,2.20527]
[1625503260873,2.20527,2214.5,2214.4,2.10967]
[1625503261477,4.41054,2214.5,2214.4,2.10967]
[1625503262281,4.41054,2214.5,2214.4,2.02237]
[1625503262988,5.41054,2214.5,2214.0,2.2821]
[1625503263187,5.41054,2214.5,2213.8,2.20527]
[1625503263489,3.20527,2214.5,2214.1,2.20527]
[1625503265418,3.20527,2214.5,2214.1,4.90247]
[1625503265518,2.20527,2214.2,2214.1,4.90247]
[1625503270343,3.20527,2214.2,2214.1,4.90247]
[1625503270444,3.20527,2214.2,2214.1,2.20527]
[1625503274222,3.20527,2214.2,2213.8,2.20527]
[1625503275588,2.20527,2213.9,2213.8,2.20527]
[1625503276931,2.20527,2213.9,2213.8,2.14547]
[1625503277683,7e-05,2213.9,2213.8,2.14547]
[1625503278585,0.00014,2214.2,2213.8,2.14547]
[1625503279600,0.00014,2214.2,2214.1,2.20527]
[1625503279699,0.00014,2214.2,2214.1,5.40497]
[1625503279798,0.8949,2215.0,2214.1,5.40497]
[1625503279900,1.0,2215.5,2214.1,5.40497]
[1625503279998,1.8382483,2215.8,2214.1,5.40497]
[1625503280199,1.8382483,2215.8,2214.6,1.15]
[1625503280303,1.8382483,2215.8,2214.6,3.4398]
[1625503280744,5.25761582,2216.5,2214.6,3.4398]
[1625503280745,0.8985,2216.1,2214.6,3.4398]
[1625503281312,1.0,2216.3,2214.6,3.4398]
[1625503281627,1.0,2216.3,2216.2,4.41054]
[1625503281745,1.84352235,2216.8,2216.2,7.76124]
[1625503281835,6.96427,2217.0,2216.2,7.76124]
[1625503281836,8.80907454,2217.0,2216.2,7.76124]
[1625503282225,4.05007454,2217.0,2216.2,7.76124]
[1625503282516,2.20527,2217.0,2216.2,7.76124]
[1625503283116,2.20527,2217.0,2216.2,7.66644]
[1625503283219,2.20527,2217.0,2216.2,7.60444]
[1625503283667,2.20527,2217.0,2216.9,4.41054]
[1625503283967,2.20527,2217.0,2216.2,3.3507]
[1625503284217,2.20527,2217.0,2216.2,3.2525]
[1625503284623,2.20527,2217.0,2214.7,1.0]
[1625503284719,3.20527,2217.0,2214.7,1.0]
[1625503285672,2.20527,2216.3,2216.2,2.20527]
[1625503285771,5.88587,2216.3,2216.2,2.20527]
[1625503287826,3.6806,2216.3,2216.2,2.20527]
[1625503287925,2.73801206,2217.0,2216.2,2.20527]
[1625503288025,1.84861206,2217.0,2216.2,2.20527]
[1625503288228,1.84999713,2216.9,2216.2,2.20527]
[1625503289027,2.76349713,2216.9,2216.2,2.20527]
[1625503289682,2.20527,2216.8,2216.7,2.20527]
[1625503290031,4.05428296,2216.8,2216.7,1.13523303]
[1625503290786,2.20527,2216.8,2216.7,1.13523303]
[1625503293888,4.0551925,2216.8,2216.7,1.13523303]
[1625503294588,2.20527,2216.8,2216.7,1.13523303]
[1625503296094,4.05575764,2216.8,2216.7,1.13523303]
[1625503300520,3.52749823,2216.8,2216.7,1.13523303]
[1625503304483,3.52749823,2216.8,2216.7,3.303e-05]
[1625503304885,4.05586491,2216.8,2216.7,3.303e-05]
[1625503305337,0.00596697,2216.6,2216.2,2.20527]
[1625503305437,4.84802815,2216.8,2216.2,2.20527]
[1625503305935,4.84802815,2216.8,2216.5,2.20527]
[1625503306488,1.3212395,2216.7,2216.5,2.20527]
[1625503306991,1.3212395,2216.7,2215.5,14.3407]
[1625503307392,2.20527,2216.8,2215.5,14.3407]
[1625503307894,1.32114687,2216.7,2215.5,14.3407]
[1625503307993,1.32114687,2216.7,2216.3,2.20527]
[1625503309043,1.32114687,2216.7,2216.1,2.20527]
[1625503309145,3.52630476,2216.8,2216.1,2.20527]
[1625503309596,1.3210164,2216.7,2216.1,2.20527]
[1625503310008,2.20527,2216.2,2216.1,2.20527]
[1625503310099,3.09777,2216.2,2216.1,2.20527]
[1625503310198,2.20527,2216.2,2216.1,2.20527]
[1625503311215,4.84687,2216.2,2216.1,2.20527]
[1625503311422,4.84687,2216.2,2216.1,1.26487]
[1625503311560,4.84687,2216.2,2216.1,7e-05]
[1625503311860,4.84687,2216.2,2215.5,14.3407]
[1625503311960,2.20527,2215.6,2215.5,14.3407]
[1625503312062,2.20527,2215.6,2215.4,2.20527]
[1625503312063,6.06287,2215.6,2215.4,2.20527]
[1625503314324,5.15167,2215.6,2215.4,2.20527]
[1625503314424,2.20527,2215.6,2215.4,2.20527]
[1625503324537,4.46657,2215.6,2215.4,2.20527]
[1625503324746,5.37007,2215.6,2215.2,2.20527]
[1625503325849,5.37007,2215.6,2214.0,1.0]
[1625503325952,5.37007,2215.6,2213.9,14.3709]
[1625503326051,2.20527,2214.6,2214.5,2.20527]
[1625503326150,5.00387,2214.6,2214.5,2.20527]
[1625503328052,7.20914,2214.6,2214.5,2.20527]
[1625503331583,7.20914,2214.6,2213.9,14.3709]
[1625503332129,2.20527,2214.2,2214.1,2.20527]
[1625503334446,5.58007,2214.2,2214.1,2.20527]
[1625503334836,5.58007,2214.2,2214.1,2.10897]
[1625503338147,2.20527,2214.6,2214.1,2.10897]
[1625503338266,2.20527,2214.6,2214.5,2.20527]
[1625503338466,0.9035,2215.6,2214.5,2.20527]
[1625503338467,1.32141576,2215.5,2214.5,2.20527]
[1625503338750,0.9035,2215.6,2214.5,2.20527]
[1625503340150,1.32400087,2215.8,2214.5,2.20527]
[1625503340247,2.20527,2215.3,2215.2,5.43547]
[1625503341654,2.20527,2215.3,2215.2,3.2302]
[1625503342206,4.41054,2215.3,2215.2,3.2302]
[1625503343558,4.41054,2215.3,2215.0,2.20527]
[1625503347485,4.41054,2215.3,2214.2,1.0]
[1625503347580,4.41054,2215.3,2213.4,14.8018]
[1625503347678,1.0,2215.2,2213.4,15.8018]
[1625503347783,1.0,2215.2,2213.4,14.8018]
[1625503348330,1.0,2215.2,2215.0,2.20527]
[1625503348405,5.73541108,2215.3,2215.0,2.20527]
[1625503348478,5.73541108,2215.3,2215.0,5.38187]
[1625503348678,1.32487108,2215.3,2215.0,5.38187]
[1625503348831,1.32596146,2215.8,2215.0,5.38187]
[1625503349229,2.65192292,2216.0,2215.0,5.38187]
[1625503349230,1.32663701,2216.0,2215.0,5.38187]
[1625503349730,1.32663701,2216.0,2215.0,2.20527]
[1625503349830,1.32663701,2216.0,2214.7,2.20527]
[1625503350034,4.83593701,2216.0,2214.7,2.20527]
[1625503350135,5.0,2215.9,2214.4,1.0]
[1625503350232,5.0,2215.9,2214.2,1.0]
[1625503350330,2.20527,2214.5,2214.3,2.20527]
[1625503350429,5.54537,2214.5,2214.3,2.20527]
[1625503351064,5.54537,2214.5,2213.4,1.32758153]
[1625503351150,5.54537,2214.5,2213.1,15.0503]
[1625503352076,2.20527,2214.5,2213.1,15.0503]
[1625503352360,2.20527,2214.5,2214.4,7.85094]
[1625503352871,2.20527,2214.9,2214.4,7.85094]
[1625503352971,1.32468607,2215.3,2214.4,7.85094]
[1625503353170,1.32483762,2215.5,2214.4,7.85094]
[1625503353621,1.32444809,2215.6,2214.4,7.85094]
[1625503354372,2.20527,2214.9,2214.8,2.20527]
[1625503356327,4.41054,2214.9,2214.8,2.20527]
[1625503357046,4.41054,2214.9,2214.4,2.20527]
[1625503358198,5.73368122,2214.9,2214.4,2.20527]
[1625503358297,2.20527,2214.5,2214.4,2.20527]
[1625503358547,4.82267,2214.5,2214.4,2.20527]
[1625503366478,2.20527,2214.5,2214.4,2.20527]
[1625503375372,5.47957,2214.5,2214.4,2.20527]
[1625503388960,2.20527,2214.5,2214.4,2.20527]
[1625503389067,1.32060846,2214.8,2214.4,2.20527]
[1625503389170,1.32060846,2214.8,2214.4,5.20347]
[1625503389610,2.20527,2214.9,2214.4,5.20347]
[1625503390463,2.20527,2214.9,2214.8,2.20527]
[1625503395173,2.20527,2214.9,2214.4,2.20527]
[1625503395379,5.12917,2214.9,2214.4,2.20527]
[1625503395771,1.32238939,2214.8,2214.4,2.20527]
[1625503396520,2.20527,2214.5,2214.4,2.20527]
[1625503405699,3.52962247,2214.5,2214.4,2.20527]
[1625503407206,3.52962247,2214.5,2213.4,1.0]
[1625503407308,3.52962247,2214.5,2213.3,14.1883]
[1625503407537,4.62962247,2214.5,2213.3,14.1883]